bitfinex/quotes_ETHUSD_20240729
["timestamp","ask_amount","ask_price","bid_price","bid_amount"]
[1722268363059,3.24629,3316.3,3315.1,0.29755]
[1722268363060,3.0,3315.9,3315.1,0.29755]
[1722268363264,3.01587,3315.8,3315.1,0.29755]
[1722268363900,3.01578,3315.9,3315.1,0.29755]
[1722268364109,3.0,3315.8,3315.1,0.29755]
[1722268364499,3.016,3315.7,3314.9,2.4255]
[1722268364698,6.01593,3315.8,3314.9,2.4255]
[1722268364899,3.01595,3315.7,3314.9,2.4255]
[1722268365225,3.01607,3315.6,3314.9,2.4255]
[1722268365425,0.903202,3315.6,3314.9,2.4255]
[1722268365632,3.01605,3315.6,3314.9,2.4255]
[1722268365829,3.01627,3315.4,3314.9,2.4255]
[1722268366597,3.0,3315.5,3314.9,2.4255]
[1722268366901,6.01615,3315.5,3314.9,2.4255]
[1722268367491,3.0,3315.5,3314.9,2.4255]
[1722268367701,3.01637,3315.3,3314.9,2.4255]
[1722268369184,0.3,3315.4,3314.9,2.4255]
[1722268369185,3.31622,3315.4,3314.9,2.4255]
[1722268369458,0.03437143,3315.3,3314.9,2.4255]
[1722268369947,3.05070143,3315.3,3314.9,2.4255]
[1722268371026,0.03437143,3315.3,3314.9,2.4255]
[1722268371221,3.01606,3315.6,3314.9,2.4255]
[1722268371552,6.01593,3315.8,3314.9,2.4255]
[1722268371553,3.03445753,3315.5,3314.9,2.4255]
[1722268371763,0.03445753,3315.5,3315.0,0.06033052]
[1722268372145,8.57578127,3316.1,3315.0,0.06033052]
[1722268372351,8.57578127,3316.1,3314.9,2.4255]
[1722268372352,0.03425704,3315.4,3314.9,2.4255]
[1722268372519,3.01577,3315.9,3315.0,0.30287208]
[1722268372724,0.03435587,3315.3,3315.0,0.30287208]
[1722268372923,3.01559,3316.1,3315.0,0.30287208]
[1722268373125,0.03431281,3315.2,3314.9,2.4255]
[1722268373325,3.01591,3315.8,3314.9,2.4255]
[1722268373674,3.01584,3315.9,3314.9,2.4255]
[1722268373675,0.03426976,3315.1,3314.9,2.4255]
[1722268373821,3.0,3315.8,3314.9,2.4255]
[1722268374025,3.65207005,3315.7,3314.9,2.4255]
[1722268374457,3.01606,3315.6,3314.9,2.4255]
[1722268374635,3.01613,3315.5,3314.9,2.4255]
[1722268374835,0.03439892,3315.4,3314.9,2.4255]
[1722268375489,3.05063892,3315.4,3314.9,2.4255]
[1722268375632,0.60667689,3315.3,3314.9,2.4255]
[1722268375829,0.03439892,3315.4,3314.9,2.4255]
[1722268376030,0.03449293,3315.3,3314.9,2.4255]
[1722268376362,4.54357593,3315.6,3314.9,2.4255]
[1722268376781,0.03342925,3315.5,3314.9,2.4255]
[1722268377587,10.39092127,3316.0,3314.9,2.4255]
[1722268377787,0.03328142,3315.4,3314.9,2.4255]
[1722268377990,3.01592,3315.8,3314.9,2.4255]
[1722268378193,0.03320252,3315.3,3314.9,2.4255]
[1722268378371,3.01592,3315.8,3314.9,2.4255]
[1722268378372,3.0,3315.6,3314.9,2.4255]
[1722268378569,0.03315946,3315.2,3314.9,2.4255]
[1722268378768,3.0,3315.7,3314.9,2.4255]
[1722268378981,0.03311641,3315.1,3314.9,2.4255]
[1722268379185,3.0,3315.7,3314.9,2.4255]
[1722268379421,0.03307335,3315.0,3314.9,2.4255]
[1722268379612,3.0,3315.8,3314.9,2.97576903]
[1722268379779,0.03307335,3315.0,3314.9,2.4255]
[1722268379981,3.17784,3316.3,3314.9,2.4255]
[1722268379982,3.0,3316.1,3314.9,2.4255]
[1722268380213,3.01545,3316.3,3315.1,5.43229]
[1722268380525,2.947,3316.7,3315.1,2.4158]
[1722268380526,3.04891035,3316.2,3315.1,2.4158]
[1722268380691,0.03338035,3316.2,3315.2,0.06032032]
[1722268380894,0.03338035,3316.2,3315.2,0.36293235]
[1722268381107,0.03338035,3316.2,3315.3,0.06032032]
[1722268381312,4.83018,3316.6,3315.4,2.4158]
[1722268381313,4.8302,3316.6,3315.4,2.4158]
[1722268381629,0.03333731,3316.1,3315.4,2.4158]
[1722268381794,3.01532,3316.4,3315.4,2.4158]
[1722268381995,0.03338568,3316.0,3315.4,2.69367324]
[1722268382194,3.0154,3316.3,3315.4,2.69367324]
[1722268382407,0.03334264,3315.9,3315.5,0.0603203]
[1722268382597,3.0,3316.2,3315.5,0.0603203]
[1722268382919,3.0,3316.4,3315.4,5.70989324]
[1722268383227,0.03342872,3316.1,3315.5,0.9329289]
[1722268383392,0.03351479,3316.3,3315.6,3.01597]
[1722268383599,0.03351479,3316.3,3315.5,0.9329289]
[1722268383600,3.01505,3316.7,3315.8,2.4893]
[1722268383818,0.03345081,3316.2,3315.8,2.4893]
[1722268384020,3.01493,3316.9,3315.9,0.25496126]
[1722268384358,3.04875427,3316.8,3315.8,2.4893]
[1722268384629,3.01513,3316.6,3315.8,2.4893]
[1722268384798,3.01523,3316.5,3315.8,2.4893]
[1722268385002,0.03378116,3316.5,3315.8,2.4893]
[1722268385684,6.0148,3317.0,3315.8,2.4893]
[1722268385887,0.03397591,3316.4,3315.9,0.55655517]
[1722268386113,3.0,3317.0,3316.0,3.01562]
[1722268386324,0.03345275,3316.3,3316.2,2.416]
[1722268386516,2.4515,3317.7,3316.2,5.43149]
[1722268386517,4.82925,3317.6,3316.2,5.43149]
[1722268386796,0.03354416,3316.3,3316.2,2.416]
[1722268387126,3.01459,3317.2,3316.2,2.416]
[1722268387324,0.03376624,3316.3,3316.2,2.96519226]
[1722268387484,3.01481,3317.0,3316.2,2.416]
[1722268387819,0.03385834,3316.3,3316.2,2.416]
[1722268388044,3.01501,3316.8,3316.2,2.416]
[1722268388185,0.03396307,3316.3,3316.2,2.416]
[1722268388386,0.03396307,3316.3,3315.5,2.2967]
[1722268388615,3.01518,3316.6,3315.6,0.25745732]
[1722268388811,0.03414252,3316.2,3315.6,0.25745732]
[1722268389015,3.01518,3316.6,3315.6,0.25745732]
[1722268389186,0.0340995,3316.1,3315.5,2.2967]
[1722268389383,3.01518,3316.6,3315.5,2.2967]
[1722268389384,3.01532,3316.4,3315.5,2.2967]
[1722268389615,3.01518,3316.6,3315.5,2.2967]
[1722268389890,3.04950159,3316.5,3315.5,2.2967]
[1722268390114,3.04954159,3316.5,3315.5,2.2967]
[1722268390312,3.01555,3316.2,3315.5,2.2967]
[1722268390826,3.04958857,3316.4,3315.5,2.2967]
[1722268390827,0.03404217,3316.1,3315.5,2.2967]
[1722268391196,3.01541,3316.3,3315.5,2.2967]
[1722268391399,0.03399914,3316.0,3315.5,2.2967]
[1722268391617,2.42147216,3316.5,3315.5,2.2967]
[1722268391951,0.03395611,3315.9,3315.5,2.2967]
[1722268392233,0.03395611,3315.9,3315.2,3.31895203]
[1722268392234,2.947,3317.2,3315.6,0.06032196]
[1722268392457,0.03386443,3315.8,3315.7,5.35599]
[1722268392755,9.02943,3317.1,3315.9,2.3401]
[1722268393035,3.01478,3317.0,3316.0,0.53559]
[1722268393337,3.0,3316.9,3316.0,0.53559]
[1722268393506,3.03411209,3316.9,3316.0,0.53559]
[1722268394103,3.03411209,3316.9,3316.1,0.287569]
[1722268394104,0.03411209,3316.9,3316.1,0.287569]
[1722268394303,3.0,3317.1,3316.1,0.287569]
[1722268394502,0.03406907,3316.8,3316.3,2.4429]
[1722268394702,3.0,3317.1,3316.3,2.4429]
[1722268394912,0.0340583,3316.7,3316.3,2.4429]
[1722268395155,3.0,3317.1,3316.3,2.72197727]
[1722268395291,0.03401528,3316.6,3316.3,2.72197727]
[1722268395618,3.0,3317.2,3316.3,2.72197727]
[1722268395801,0.03397225,3316.5,3316.3,2.72197727]
[1722268395985,3.01459,3317.2,3316.3,2.72197727]
[1722268396189,3.01459,3317.2,3316.3,2.4429]
[1722268396190,0.03392386,3316.4,3316.3,2.4429]
[1722268396440,3.01483,3317.0,3316.3,2.4429]
[1722268396611,3.01486,3316.9,3316.3,2.4429]
[1722268396809,0.03432743,3316.9,3316.3,2.4429]
[1722268397008,3.04918743,3316.9,3316.3,2.4429]
[1722268397215,3.31992874,3316.8,3316.3,2.4429]
[1722268397407,0.30491874,3316.8,3316.3,2.4429]
[1722268397621,0.03428442,3316.8,3316.3,2.4429]
[1722268397914,0.301459,3317.1,3316.3,2.4429]
[1722268397915,3.01518,3316.6,3316.3,2.4429]
[1722268398325,0.03426083,3316.5,3316.3,2.4429]
[1722268399135,3.01506,3316.7,3316.3,2.4429]
[1722268399300,0.03421781,3316.4,3316.3,2.4429]
[1722268399518,2.947,3316.8,3316.3,2.4429]
[1722268399519,5.96202,3316.8,3316.3,2.4429]
[1722268399716,0.03421781,3316.4,3316.3,2.4429]
[1722268399935,3.01533,3316.4,3316.0,2.3415]
[1722268400110,5.99656781,3316.4,3315.1,2.3415]
[1722268400307,3.01543,3316.3,3315.1,5.35794]
[1722268400507,3.04957791,3316.3,3315.1,5.35794]
[1722268400739,0.03414791,3316.3,3315.3,2.2508]
[1722268401102,3.04955791,3316.3,3315.3,2.2508]
[1722268401302,3.04960791,3316.3,3315.3,2.2508]
[1722268401609,3.01554,3316.2,3315.3,2.2508]
[1722268401853,3.04956791,3316.3,3315.3,2.2508]
[1722268402060,3.04956791,3316.3,3315.4,0.22508]
[1722268402061,0.03406186,3316.1,3315.4,0.22508]
[1722268402364,0.03345985,3316.0,3315.5,2.3454]
[1722268402819,3.01527,3316.5,3315.5,2.3454]
[1722268403016,3.01548,3316.3,3315.5,2.3454]
[1722268403219,3.01565,3316.1,3315.5,2.3454]
[1722268403420,3.01572,3316.0,3315.5,2.3454]
[1722268403624,0.03332002,3316.0,3315.5,2.3454]
[1722268404077,0.29807291,3316.2,3315.5,2.3454]
[1722268404220,0.03377594,3315.9,3315.5,2.3454]
[1722268404427,8.97773,3316.4,3315.5,2.3454]
[1722268404642,3.913183,3316.3,3315.5,2.3454]
[1722268404837,3.94713106,3316.3,3315.5,2.3454]
[1722268405038,3.01561,3316.1,3315.5,2.3454]
[1722268405242,3.01579,3315.9,3315.5,2.3454]
[1722268405637,3.01619,3315.5,3314.3,5.50781]
[1722268405858,3.01619,3315.5,3314.4,0.852507]
[1722268406061,0.03359937,3315.4,3314.4,0.852507]
[1722268406372,0.03359937,3315.4,3314.5,2.4906]
[1722268406667,0.03359937,3315.4,3314.6,5.50755]
[1722268406877,3.0,3315.8,3314.8,2.4906]
[1722268407056,3.0,3315.8,3314.9,0.55677897]
[1722268407463,0.03368906,3315.7,3315.1,2.4906]
[1722268407667,3.01551,3316.2,3315.2,0.0603217]
[1722268407853,6.01559,3316.1,3315.2,0.0603217]
[1722268408046,3.0336745,3316.1,3315.2,0.0603217]
[1722268408684,6.0492645,3316.1,3315.2,0.0603217]
[1722268408890,3.0336745,3316.1,3315.2,0.0603217]
[1722268409027,0.0336745,3316.1,3315.2,0.0603217]
[1722268409231,3.0336745,3316.1,3315.2,0.61707187]
[1722268409850,3.0336745,3316.1,3315.2,0.55675017]
[1722268410053,3.0336745,3316.1,3315.2,0.06032176]
[1722268412488,3.0336745,3316.1,3315.1,2.4906]
[1722268412697,6.0492645,3316.1,3315.1,2.4906]
[1722268413756,3.01583,3315.9,3315.1,2.4906]
[1722268414112,0.03269696,3315.8,3315.1,2.4906]
[1722268414399,0.03269696,3315.8,3315.1,2.7953379]
[1722268414906,0.03265392,3315.7,3315.1,2.7953379]
[1722268415102,6.01561,3316.1,3315.1,2.7953379]
[1722268415257,0.03261088,3315.6,3315.1,2.7953379]
[1722268415458,6.01561,3316.1,3315.1,2.7953379]
[1722268415654,0.03256783,3315.5,3315.1,2.7953379]
[1722268415859,6.918716,3316.1,3315.1,2.7953379]
[1722268416061,0.03278304,3316.0,3315.1,2.7953379]
[1722268416364,3.04847304,3316.0,3315.1,2.7953379]
[1722268416949,3.95487034,3316.0,3315.1,2.7953379]
[1722268418496,3.01579,3315.9,3315.1,2.4906]
[1722268418701,3.95487034,3316.0,3315.1,2.4906]
[1722268418907,0.0328017,3315.8,3315.1,2.4906]
[1722268419190,3.9220873,3316.0,3315.1,2.4906]
[1722268419407,0.03275866,3315.7,3315.1,2.4906]
[1722268419554,3.70802873,3315.9,3315.1,2.4906]
[1722268419752,0.03276431,3315.6,3315.1,2.4906]
[1722268419951,3.01586,3315.8,3315.1,2.4906]
[1722268420156,0.03272127,3315.5,3315.1,2.4906]
[1722268420460,0.03267822,3315.4,3315.1,2.4906]
[1722268420660,3.70800873,3315.9,3315.1,2.4906]
[1722268420862,0.70522026,3315.8,3315.1,2.4906]
[1722268421893,0.03285039,3315.8,3315.1,2.4906]
[1722268422256,0.03285039,3315.8,3315.2,2.44722399]
[1722268422457,0.03285039,3315.8,3314.5,2.947]
[1722268422458,0.03260125,3315.7,3315.4,2.3869]
[1722268422760,6.01542,3316.3,3315.4,2.3869]
[1722268422960,0.03253849,3315.6,3315.4,2.3869]
[1722268423173,3.01518,3316.6,3315.5,0.24472194]
[1722268423174,3.0,3316.5,3315.5,0.24472194]
[1722268423369,0.03249544,3315.5,3315.4,2.3869]
[1722268423673,6.0153,3316.5,3315.4,2.3869]
[1722268423863,3.04820278,3316.4,3315.4,2.3869]
[1722268424198,0.03288278,3316.4,3315.6,2.3028]
[1722268424426,0.03288278,3316.4,3315.8,2.3028]
[1722268424553,3.01491,3316.9,3315.9,0.0603085]
[1722268424758,0.03305588,3316.8,3315.9,0.0603085]
[1722268425498,3.03305588,3316.8,3315.9,0.0603085]
[1722268425904,3.03305588,3316.8,3315.8,2.3028]
[1722268426068,0.60479659,3316.7,3315.8,2.3028]
[1722268426403,0.03307457,3316.6,3315.8,2.3028]
[1722268426603,3.04825457,3316.6,3315.8,2.3028]
[1722268426799,3.01536,3316.4,3315.8,2.3028]
[1722268427298,0.03302793,3316.3,3315.8,2.3028]
[1722268427509,0.33786672,3316.3,3315.8,2.3028]
[1722268428159,3.35326672,3316.3,3315.8,2.3028]
[1722268428680,3.01551,3316.2,3315.8,2.3028]
[1722268429003,3.01551,3316.2,3315.0,3.0165]
[1722268429004,0.03309499,3316.1,3315.5,2.3289]
[1722268429502,3.01541,3316.3,3315.5,2.3289]
[1722268429717,0.03305195,3316.0,3315.5,2.3289]
[1722268429919,3.01541,3316.3,3315.5,2.3289]
[1722268430094,0.03300892,3315.9,3315.5,2.3289]
[1722268430289,3.01541,3316.3,3315.5,2.3289]
[1722268430489,0.03296588,3315.8,3315.5,2.3289]
[1722268430743,6.01533,3316.4,3315.5,2.3289]
[1722268430884,0.03250766,3315.7,3315.5,2.3289]
[1722268431079,3.0,3316.4,3315.5,2.3289]
[1722268431287,0.03302371,3316.3,3315.5,2.3289]
[1722268431496,6.01514,3316.6,3315.6,0.54053869]
[1722268431714,0.03298068,3316.2,3315.6,0.54053869]
[1722268431911,6.01514,3316.6,3315.6,0.54053869]
[1722268432114,6.01514,3316.6,3315.5,2.3289]
[1722268432429,0.03310976,3316.5,3315.6,3.07414981]
[1722268432727,0.03310976,3316.5,3315.7,2.3634]
[1722268432943,3.0,3316.7,3315.7,2.3634]
[1722268432944,6.0151,3316.7,3315.7,2.3634]
[1722268433236,0.03297037,3316.4,3315.7,2.3634]
[1722268433440,3.04819642,3316.6,3315.7,2.3634]
[1722268434928,0.03305642,3316.6,3315.7,2.3634]
[1722268435694,3.04819642,3316.6,3315.7,2.3634]
[1722268435889,0.93937406,3316.6,3315.7,2.3634]
[1722268436118,0.03305642,3316.6,3315.7,2.3634]
[1722268436896,3.04820642,3316.6,3315.7,2.3634]
[1722268437733,3.01533,3316.4,3315.7,2.3634]
[1722268438135,0.0330085,3316.3,3315.7,2.3634]
[1722268439449,3.01518,3316.6,3315.7,2.3634]
[1722268439674,0.03271676,3316.2,3315.7,2.3634]
[1722268439828,3.01518,3316.6,3315.8,0.23634]
[1722268440211,6.01505,3316.7,3315.8,0.23634]
[1722268440348,0.03318099,3316.5,3315.8,0.23634]
[1722268440668,3.04837401,3316.6,3315.8,0.23634]
[1722268440872,0.03313796,3316.4,3315.7,2.3634]
[1722268441090,0.03318099,3316.5,3315.7,2.3634]
[1722268441290,0.03309494,3316.3,3315.8,0.06031309]
[1722268441655,3.0,3316.7,3315.8,0.06031309]
[1722268441856,0.03309131,3316.2,3315.9,0.24237131]
[1722268442253,3.0,3316.7,3315.9,0.24237131]
[1722268442571,3.0,3316.7,3315.8,0.06031309]
[1722268442572,6.01505,3316.7,3315.8,0.06031309]
[1722268442789,0.03326341,3316.6,3315.8,0.06031309]
[1722268444151,3.01523,3316.5,3315.7,2.3634]
[1722268444382,3.04844501,3316.5,3315.7,2.3634]
[1722268445278,3.65479451,3316.5,3315.7,2.3634]
[1722268445669,3.01542,3316.3,3315.7,2.3634]
[1722268445865,0.03318019,3316.2,3315.7,2.3634]
[1722268446698,3.0,3317.0,3315.9,2.326]
[1722268446927,0.03269726,3316.1,3316.0,2.38630682]
[1722268447060,3.60147,3317.0,3316.0,2.38630682]
[1722268447401,0.03216234,3316.9,3316.0,2.38630682]
[1722268448161,3.04703234,3316.9,3316.0,2.38630682]
[1722268448396,3.95320557,3316.9,3316.0,2.326]
[1722268448698,7.82998,3316.8,3316.0,2.326]
[1722268448904,3.0153,3316.5,3316.0,2.326]
[1722268449194,3.01539,3316.4,3316.0,2.326]
[1722268449399,0.03220195,3316.4,3316.0,2.326]
[1722268450010,0.03172063,3316.3,3316.0,2.326]
[1722268450170,3.04714063,3316.3,3316.0,2.326]
[1722268451007,3.04714063,3316.3,3315.1,2.4474]
[1722268451310,3.01542,3316.3,3315.2,0.55]
[1722268451605,0.0321159,3316.2,3315.2,0.55]
[1722268451809,0.0321159,3316.2,3315.4,2.3405]
[1722268453284,3.0476159,3316.2,3315.4,2.3405]
[1722268453480,0.0321159,3316.2,3315.4,2.3405]
[1722268453681,3.01532,3316.4,3315.4,2.40081734]
[1722268453908,3.04757893,3316.3,3315.4,2.3405]
[1722268454111,3.04757893,3316.3,3315.4,2.689524]
[1722268454325,3.04757893,3316.3,3315.4,2.74984134]
[1722268454489,3.04757893,3316.3,3315.4,2.689524]
[1722268455566,0.03215893,3316.3,3315.4,5.76598133]
[1722268455846,7.31,3317.0,3315.6,2.3357]
[1722268455847,10.32481,3317.0,3315.6,2.3357]
[1722268456049,0.03035673,3316.2,3315.8,2.3357]
[1722268456236,3.01487,3316.9,3315.9,2.46880608]
[1722268456612,3.04586176,3316.8,3315.9,2.46880608]
[1722268457146,0.03091176,3316.8,3315.9,2.4085]
[1722268457345,3.01504,3316.7,3315.9,2.727707]
[1722268457523,3.04582738,3316.7,3315.9,2.727707]
[1722268458493,0.03078738,3316.7,3315.9,2.727707]
[1722268458748,3.01496,3316.8,3315.9,2.727707]
[1722268458945,0.03074437,3316.6,3315.9,0.3511277]
[1722268459123,3.04586738,3316.7,3315.5,3.01606]
[1722268459453,0.03070135,3316.5,3315.5,3.01606]
[1722268459625,0.03074437,3316.6,3315.5,3.01606]
[1722268459944,0.03070135,3316.5,3315.4,0.349024]
[1722268460151,3.01531,3316.4,3315.4,0.349024]
[1722268460356,3.04607307,3316.4,3315.2,4.51635]
[1722268460722,3.01546,3316.3,3314.9,2.947]
[1722268460909,0.03076348,3316.3,3315.0,4.06616592]
[1722268461114,0.03076348,3316.3,3315.1,1.75094752]
[1722268461458,3.04618348,3316.3,3315.1,3.71779659]
[1722268461661,3.04618348,3316.3,3315.1,0.70131659]
[1722268461811,3.04618348,3316.3,3315.2,2.4491]
[1722268462162,0.03076348,3316.3,3315.2,3.01635]
[1722268462364,0.03076348,3316.3,3315.3,2.82086666]
[1722268464212,0.03076348,3316.3,3315.4,0.06031568]
[1722268464559,0.03076348,3316.3,3315.3,2.82086666]
[1722268465110,0.03076348,3316.3,3315.3,5.83717666]
[1722268465309,3.0,3316.6,3315.3,5.83717666]
[1722268465550,0.02964046,3316.2,3315.3,2.82086666]
[1722268465753,3.0,3316.4,3315.3,5.83717666]
[1722268465926,0.02959744,3316.1,3315.7,3.01588]
[1722268466129,2.2738,3317.3,3315.8,2.4058]
[1722268466312,0.02803531,3316.0,3315.8,2.4058]
[1722268466621,0.3606255,3317.1,3315.8,2.4058]
[1722268466622,3.01529,3316.5,3315.8,2.4058]
[1722268466821,0.02835564,3315.9,3315.8,2.4058]
[1722268467130,0.02742196,3315.9,3315.8,2.4058]
[1722268467332,3.01543,3316.3,3315.8,2.4058]
[1722268467675,0.02722454,3315.9,3315.8,2.4058]
[1722268467814,0.02722454,3315.9,3315.1,0.70131659]
[1722268467815,6.61859,3316.2,3315.4,2.4016]
[1722268468012,0.02722453,3315.9,3315.4,2.4016]
[1722268468212,3.01567,3316.1,3315.4,2.4016]
[1722268468447,0.02716988,3315.8,3315.4,2.4016]
[1722268468648,3.0157,3316.0,3315.4,2.4016]
[1722268468850,0.02730611,3315.7,3315.4,2.4016]
[1722268469075,0.30157,3315.9,3315.4,2.4016]
[1722268469216,0.02726307,3315.6,3314.8,7.29]
[1722268469553,3.04487328,3315.5,3314.7,2.4527]
[1722268469761,0.30448733,3315.4,3314.7,2.4527]
[1722268469977,0.33154478,3315.4,3314.7,2.4527]
[1722268470349,3.01632,3315.3,3314.7,2.4527]
[1722268470581,3.0433344,3315.3,3314.7,2.4527]
[1722268470781,0.0270144,3315.3,3314.7,2.4527]
[1722268471438,3.0433344,3315.3,3314.7,2.4527]
[1722268471638,0.66342657,3315.3,3314.7,2.4527]
[1722268471953,3.0165,3315.1,3314.7,2.4527]
[1722268472369,0.02688524,3315.0,3314.7,2.4527]
[1722268472879,3.04350524,3315.0,3314.0,2.4217]
[1722268473185,3.01642,3315.2,3314.0,3.39287]
[1722268473186,0.0267468,3314.9,3314.0,3.39287]
[1722268473337,3.01659,3315.0,3314.0,3.39287]
[1722268473533,0.02670374,3314.8,3314.0,2.4217]
[1722268473763,3.0168,3314.8,3314.0,2.4217]
[1722268473969,3.01704,3314.5,3314.0,2.4217]
[1722268474373,3.01733,3314.2,3313.2,2.2511]
[1722268474691,3.04563237,3314.4,3313.2,2.2511]
[1722268474908,3.04563237,3314.4,3312.7,4.52983422]
[1722268474909,0.60627024,3314.4,3313.3,0.28546167]
[1722268475202,6.0169,3314.7,3313.4,2.2511]
[1722268475203,3.0,3314.5,3313.4,2.2511]
[1722268475365,0.02833014,3314.4,3313.7,2.4563]
[1722268475569,3.0,3314.8,3313.8,0.06034347]
[1722268475793,0.02833014,3314.4,3313.8,0.06034347]
[1722268475987,3.0,3314.8,3313.8,0.61378782]
[1722268476302,0.02833014,3314.4,3313.8,0.61378782]
[1722268476455,3.0,3314.8,3313.9,2.3653]
[1722268476660,3.0,3314.9,3314.0,0.06033982]
[1722268477006,3.01647,3315.2,3314.0,0.06033982]
[1722268477313,3.01647,3315.2,3314.1,0.54432098]
[1722268477542,3.65279217,3315.3,3314.1,0.54432098]
[1722268477823,3.65279217,3315.3,3314.2,0.06033617]
[1722268477824,0.63641217,3315.3,3314.2,0.06033617]
[1722268478039,3.01628,3315.4,3314.3,2.3336]
[1722268478198,10.32606,3315.6,3314.4,0.06033252]
[1722268478528,6.03202,3315.7,3314.5,2.3336]
[1722268478834,0.63369958,3315.6,3314.6,3.07728068]
[1722268479137,0.03049758,3315.6,3314.6,0.06033068]
[1722268479310,3.01596,3315.7,3314.6,0.06033068]
[1722268479636,3.03049758,3315.6,3314.6,0.06033068]
[1722268479849,6.04653758,3315.6,3314.5,2.57299325]
[1722268479985,3.62080376,3315.5,3314.5,2.57299325]
[1722268480185,6.01628,3315.4,3314.5,2.3336]
[1722268480381,3.0,3315.4,3314.5,2.3336]
[1722268480781,0.02837947,3315.3,3314.5,2.3336]
[1722268480985,0.02837947,3315.3,3314.6,0.01965343]
[1722268481226,6.01605,3315.6,3314.6,0.01965343]
[1722268481400,3.01614,3315.5,3314.6,0.01965343]
[1722268481597,3.0,3315.4,3314.6,0.01965343]
[1722268482096,6.619242,3315.6,3314.6,0.0603319]
[1722268482286,6.619302,3315.6,3314.6,0.0603319]
[1722268482485,3.01632,3315.3,3314.5,2.3336]
[1722268482930,3.9797092,3315.5,3314.5,2.3336]
[1722268483140,3.0,3315.4,3314.5,2.3336]
[1722268483314,0.9635292,3315.5,3314.6,0.06033205]
[1722268483706,3.0,3315.7,3314.6,0.06033205]
[1722268483904,3.0,3315.7,3314.7,2.2917]
[1722268484429,0.30157,3315.9,3314.9,2.2917]
[1722268484592,3.01544,3316.3,3315.1,2.2917]
[1722268484944,3.01523,3316.5,3315.2,0.06031927]
[1722268485140,3.01523,3316.5,3315.3,2.2917]
[1722268485318,3.01534,3316.4,3315.3,2.2917]
[1722268485518,3.0156,3316.1,3315.3,2.2917]
[1722268485710,0.603057,3316.3,3315.3,2.2917]
[1722268485711,3.618537,3316.3,3315.3,2.2917]
[1722268485914,3.0157,3316.0,3315.3,2.2917]
[1722268486310,3.01559,3316.1,3315.3,2.2917]
[1722268486504,3.01561,3316.1,3315.3,2.2917]
[1722268486725,3.01586,3315.8,3314.7,2.3794]
[1722268486925,6.01568,3316.0,3314.7,2.3794]
[1722268486926,0.301586,3315.7,3314.7,2.3794]
[1722268487138,3.01583,3315.9,3314.7,2.3794]
[1722268488321,6.01571,3316.0,3314.7,2.3794]
[1722268488519,3.01585,3315.9,3314.8,2.3675]
[1722268489124,3.0,3316.0,3314.8,2.3675]
[1722268489125,3.01586,3315.8,3314.8,2.3675]
[1722268490180,6.01568,3316.0,3314.8,2.3675]
[1722268490477,6.01568,3316.0,3315.0,2.4043]
[1722268490478,0.601568,3315.9,3315.0,2.4043]
[1722268490825,3.617348,3315.9,3315.0,2.4043]
[1722268491248,3.01597,3315.7,3314.7,2.3272]
[1722268491460,3.01628,3315.4,3314.7,2.3272]
[1722268491665,3.01657,3315.1,3314.7,2.3272]
[1722268491875,3.01657,3315.1,3314.0,7.29]
[1722268491876,3.01659,3315.0,3314.3,2.3272]
[1722268492075,3.01646,3315.2,3314.3,2.3272]
[1722268492363,3.01624,3315.4,3314.3,2.3272]
[1722268492523,6.01637,3315.3,3314.3,2.3272]
[1722268492726,0.903261,3315.2,3314.3,2.3272]
[1722268492968,3.919681,3315.2,3314.3,2.3272]
[1722268493329,0.903261,3315.2,3314.3,2.3272]
[1722268494043,3.919691,3315.2,3314.3,2.3272]
[1722268494253,3.01665,3315.0,3314.3,2.3272]
[1722268494428,3.318355,3314.9,3314.3,2.3272]
[1722268495832,3.01682,3314.8,3314.3,2.3272]
[1722268496150,3.01688,3314.7,3314.3,2.3272]
[1722268496362,3.318355,3314.9,3314.3,2.3272]
[1722268496571,0.301665,3314.9,3314.3,2.3272]
[1722268496896,3.01646,3315.2,3314.3,2.55992]
[1722268497027,3.0165,3315.1,3314.3,2.3272]
[1722268497377,6.01664,3315.0,3314.3,2.3272]
[1722268498282,6.01663,3315.0,3314.3,2.3272]
[1722268498464,3.0,3315.0,3314.3,2.3272]
[1722268498639,3.0,3315.1,3314.4,0.06033616]
[1722268498973,0.601642,3315.0,3314.4,0.06033616]
[1722268499150,12.5308,3315.8,3314.4,0.06033616]
[1722268499151,3.0,3315.3,3314.4,0.06033616]
[1722268499344,3.0,3315.5,3314.4,2.4879]
[1722268499768,3.0,3315.5,3314.6,2.2974]
[1722268500389,3.617338,3315.9,3314.7,0.0603294]
[1722268500537,3.617338,3315.9,3314.8,2.51067294]
[1722268500736,3.01588,3315.8,3314.8,2.51067294]
[1722268500931,3.01596,3315.7,3314.8,2.2749]
[1722268501235,3.01624,3315.4,3314.8,2.2749]
[1722268501437,3.01599,3315.7,3314.8,2.2749]
[1722268501668,3.01605,3315.6,3314.8,2.2749]
[1722268502052,3.01615,3315.5,3314.8,2.2749]
[1722268502252,3.317855,3315.4,3314.8,2.2749]
[1722268502484,3.01641,3315.2,3314.8,2.2749]
[1722268502635,3.01638,3315.3,3314.8,2.2749]
[1722268503041,3.0164,3315.2,3314.8,2.2749]
[1722268503298,3.317915,3315.4,3314.1,2.3686]
[1722268503497,3.01631,3315.3,3314.2,0.53686]
[1722268503790,3.0165,3315.1,3314.2,0.53686]
[1722268504082,3.01631,3315.3,3314.1,2.3686]
[1722268504299,3.01665,3315.0,3314.1,2.3686]
[1722268504583,6.01646,3315.2,3314.1,2.3686]
[1722268504748,6.01646,3315.2,3314.2,0.06033906]
[1722268505158,3.01651,3315.1,3314.2,0.06033906]
[1722268505396,0.601651,3315.1,3314.3,2.2985]
[1722268505998,0.601651,3315.1,3314.4,0.06033449]
[1722268506901,3.0,3315.2,3314.4,0.06033449]
[1722268507211,1.815,3315.8,3314.6,3.01694]